Cogmind - Beta 17 *** ADVENTURER MODE // 2026.08.04 @ 14:53:08 Player: ChrisPBacon Result: Destroyed by G-73 Enforcer with Phase Gun Performance ------------- Evolutions (9) 4500 Regions Visited (14) 2800 Robots Destroyed (130) 650 Value Destroyed (4926) 4926 Prototype IDs (44) 880 Alien Tech Used (0) 0 Bonus (2118) 2118 TOTAL SCORE: 15874 Bonus ------- High Alert Combat Kills 11 Follower Combat Kills 107 Hunted by Unchained 500 Entered Garrisons 200 Used RIF Installer 1000 Aligned with FarCom 300 Cogmind --------- Core Integrity 0/1600 Matter 84/300 Energy 47/100 System Corruption 5% Temperature Cool (9) Movement Core (50) Location -1/Access Parts ------- > --- POWER (1) -------- (None) > --- PROPULSION (5) --- (None) > --- UTILITY (16) ----- (None) > --- WEAPON (3) ------- (None) > --- INVENTORY (5) ---- Faulty Improved Quantum Reactor Xenon Bombardment Thruster Xenon Bombardment Thruster Relay Coupler [NC] (30) Peak State ------------ > --- POWER ------------ Light Quantum Reactor > --- PROPULSION ------- Impulse Thruster Impulse Thruster Array Impulse Thruster Array > --- UTILITY ---------- Small Storage Unit Structural Scanner Enhanced Optical Array Core Analyzer Advanced Reaction Control System Hacking Suite Improved Hacking Suite Advanced Hacking Suite Improved System Shield Advanced System Shield Advanced System Shield Relay Coupler [Sentry] Relay Coupler [Heavy] > --- WEAPON ----------- Micro-nuke Launcher Advanced Remote Datajack Power Sword > --- INVENTORY -------- Micro Fission Core Improved Cesium-ion Thruster Cooled VTOL Module Medium Storage Unit Relay Coupler [NC] Relay Coupler [Grunt] Advanced Plasma Cannon Improved Remote Datajack [Rating: 130] Favorites ----------- Power Light Angular Momentum Engine Engine Light Angular Momentum Engine Power Core Light Nuclear Core Reactor Light Quantum Reactor Propulsion Light Treads Treads Light Treads Leg Biometal Leg Flight Unit Improved Cesium-ion Thruster Utility Improved Hacking Suite Device Structural Scanner Storage Small Storage Unit Processor 0b10 Alert Chip Hackware Improved Hacking Suite Protection Medium Reactive Plating Weapon Gauss Rifle Energy Gun EM Pulse Gun Energy Cannon Heavy Ion Cannon Ballistic Gun Gauss Rifle Ballistic Cannon Advanced Assault Cannon Launcher Micro-nuke Launcher Special Weapon Improved Remote Datajack Slashing Weapon Power Sword Special Melee Weapon Improved Datajack Build | -11 -10 -10 -10 -9 -8 -8 -8 -7 -6 -5 -4 -3 -2 -1 ------- Run | Yrd Mat Min Exi Min Mat Gar Mat Fac Fac Fac Fac Res Res Acc Slots Evolved 18 | . . . . . 4 . . 2 2 2 2 2 2 2 Power . | . . . . . . . . . . . . . . . Propulsion 3 | . . . . . 1 . . 1 . . 1 . . . Utility 14 | . . . . . 2 . . 1 2 2 1 2 2 2 Weapon 1 | . . . . . 1 . . . . . . . . . Parts Attached 145 | 6 2 5 . 5 13 4 7 19 13 23 19 4 11 14 Power 22 | 1 . 2 . 1 2 1 1 2 2 2 2 . 3 3 Engine 11 | 1 . 1 . 1 1 1 . 1 1 1 . . 2 1 Core 7 | . . 1 . . 1 . 1 1 1 1 . . 1 . Reactor 4 | . . . . . . . . . . . 2 . . 2 Propulsion 33 | 2 . . . 1 4 1 2 3 4 3 2 2 3 6 Treads 10 | 2 . . . 1 4 1 1 . . . . . . 1 Leg 2 | . . . . . . . . . . . . . . 2 Wheel . | . . . . . . . . . . . . . . . Hover . | . . . . . . . . . . . . . . . Flight 21 | . . . . . . . 1 3 4 3 2 2 3 3 Utility 53 | 1 1 . . 1 4 1 2 10 5 11 11 1 4 1 Device 11 | . . . . 1 . . 1 2 1 3 2 . 1 . Storage 5 | 1 . . . . . . 1 1 . 1 . . 1 . Processor 5 | . 1 . . . 1 . . 1 1 . . . 1 . Hackware 27 | . . . . . . . . 6 3 7 9 1 1 . Protection 5 | . . . . . 3 1 . . . . . . . 1 Artifact . | . . . . . . . . . . . . . . . Weapon 37 | 2 1 3 . 2 3 1 2 4 2 7 4 1 1 4 Energy Gun 9 | 2 1 1 . . . . 1 . . . . . 1 3 Energy Cannon 3 | . . . . . . . . 1 . 2 . . . . Ballistic Gun 6 | . . 1 . 2 2 1 . . . . . . . . Ballistic Cannon 3 | . . 1 . . . . 1 . . . . . . 1 Launcher 1 | . . . . . . . . . . . 1 . . . Special Weapon 9 | . . . . . . . . . 2 4 2 1 . . Impact Weapon . | . . . . . . . . . . . . . . . Slashing Weapon 4 | . . . . . 1 . . 1 . 1 1 . . . Piercing Weapon . | . . . . . . . . . . . . . . . Special Melee Weapon 2 | . . . . . . . . 2 . . . . . . Unidentified Prototypes 9 | . . . . 1 1 . 2 1 2 . . . . 2 Parts Lost 54 | . 1 2 . . . . . 3 . 4 3 . 21 20 Power 8 | . . 1 . . . . . . . 2 . . 3 2 Propulsion 11 | . . . . . . . . . . 1 . . 3 7 Utility 19 | . . . . . . . . 2 . 1 1 . 9 6 Weapon 16 | . 1 1 . . . . . 1 . . 2 . 6 5 Highest Loss Streak 21 | . 1 1 . . . . . 2 . 3 1 . 21 13 To Critical Strikes . | . . . . . . . . . . . . . . . Average Backups 6 | 2 6 7 8 7 7 8 7 4 4 7 7 7 7 4 Power . | . 1 1 1 . . . . 1 1 1 . . . 1 Propulsion 1 | 1 2 4 3 2 1 2 3 . 1 1 1 2 1 1 Utility 2 | . . . . 1 1 3 3 3 2 1 3 3 3 1 Weapon 1 | . 2 2 3 3 3 2 1 . . . 1 2 1 . Tool/Special . | . . . . . . . . . . . . . . . Unused Backups 35 | . 3 . 1 3 9 3 2 2 1 3 5 . . 3 Power 2 | . . . . . . . . 1 1 . . . . . Propulsion 11 | . 2 . 1 1 3 . 1 . . 1 . . . 2 Utility 13 | . . . . . 2 2 1 1 . 1 5 . . 1 Weapon 9 | . 1 . . 2 4 1 . . . 1 . . . . Tool/Special . | . . . . . . . . . . . . . . . Average Slot Usage (%) 92 | . 96 99 100 99 95 100 100 91 98 88 88 89 79 33 Engine 5 | . 14 9 14 14 . 9 6 . 5 3 . . . . Core 2 | . . 4 . . 8 . 2 6 . 1 3 . . . Treads 12 | . 28 28 28 28 25 27 27 . . . . . . . Flight 11 | . . . . . . . . 29 25 21 15 14 12 8 Device 6 | . . . . 8 9 9 9 7 6 8 6 4 3 . Storage 6 | . 14 14 14 14 9 9 9 2 . 5 5 4 3 . Processor 9 | . 10 14 14 5 8 9 9 14 13 5 5 4 7 4 Hackware 12 | . . . . . . . . 9 25 28 34 41 35 11 Protection 2 | . . . . . 8 9 9 . . . . . . . Energy Gun 2 | . 27 15 . . . . 4 . . . . . . 4 Energy Cannon 1 | . . . . . . . . 6 6 . . . . . Ballistic Gun 8 | . . 8 14 26 24 26 13 . . . . . . . Ballistic Cannon 1 | . . 3 14 . . . 7 . . . . . . . Special Weapon 2 | . . . . . . . . . 4 5 8 9 5 . Slashing Weapon 3 | . . . . . 1 . 1 6 6 4 5 4 3 . Peak Build Rating 130 | 6 9 11 9 21 41 48 49 46 69 83 111 122 130 96 Average Rating 50 | 4 7 9 9 18 37 42 44 41 66 69 100 117 114 50 On Entrance 45 | . 6 9 9 9 21 40 46 41 44 69 83 111 122 65 Avg Prop Armor Cover (%) 15 | . . . . . . . . . . . . . . 15 Naked Turns 3 | . . . . . . . . . . . . . . 3 Heaviest Build 54 | 14 14 14 14 20 47 51 54 19 24 24 39 33 43 25 Greatest Support 72 | 40 40 40 40 40 62 72 72 28 26 25 39 39 40 28 Greatest Overweight (x) 2 | 2 . . . . . . . . 1 1 1 . 1 . Average Overweight (x) . | . . . . . . . . . . . . . . . Largest Inventory Capacity 10 | 8 8 8 8 8 8 8 8 8 5 8 8 8 10 5 Average Capacity 7 | 6 8 8 8 8 8 8 8 5 5 8 8 8 9 5 Most Carried 9 | 5 8 8 8 8 8 8 8 8 5 8 8 8 9 5 Average Carried 6 | 2 6 7 7 7 7 7 7 4 4 7 7 7 7 4 Final Capacity 8 | 8 8 8 8 8 8 8 8 5 5 8 8 8 5 5 Final Carried 8 | 5 8 8 8 8 8 8 8 5 5 8 8 8 5 4 Class Distribution -------------------- 27% | Hacker-Scout 24% | Mutant 21% | Skirmisher 16% | Wizard-Scout 3% | Scout Dominant Class ---------------- Mutant | -10/Materials Mutant | -10/Mines Mutant | -10/Exiles Mutant | -9/Mines Skirmisher | -8/Materials Skirmisher | -8/Garrison Skirmisher | -8/Materials Hacker-Scout | -7/Factory Hacker-Scout | -6/Factory Hacker-Scout | -5/Factory Wizard-Scout | -4/Factory Wizard-Scout | -3/Research Wizard-Scout | -2/Research Hacker-Mutant | -1/Access Resources | -11 -10 -10 -10 -9 -8 -8 -8 -7 -6 -5 -4 -3 -2 -1 ----------- Run | Yrd Mat Min Exi Min Mat Gar Mat Fac Fac Fac Fac Res Res Acc Matter Collected 3263 | 222 53 61 . 116 433 146 595 254 106 598 344 80 101 154 Remotely . | . . . . . . . . . . . . . . . Salvage Created 4463 | 8 227 372 . 46 795 151 857 210 106 488 484 80 374 265 Parts 303 | 1 13 22 . 6 62 4 59 20 12 26 34 5 17 22 Haulers Intercepted 1 | . . . . . . . . . . 1 . . . . Recyclers Shooed 3 | . . . . . . . 3 . . . . . . . Parts Field Recycled . | . . . . . . . . . . . . . . . Retrieved Matter . | . . . . . . . . . . . . . . . Parts Self-Destructed . | . . . . . . . . . . . . . . . Prevented . | . . . . . . . . . . . . . . . Parts Restored . | . . . . . . . . . . . . . . . Kills | -11 -10 -10 -10 -9 -8 -8 -8 -7 -6 -5 -4 -3 -2 -1 ------- Run | Yrd Mat Min Exi Min Mat Gar Mat Fac Fac Fac Fac Res Res Acc Combat Hostiles Destroyed 95 | . 6 12 . 3 17 2 17 3 2 5 16 1 5 6 Melee 21 | . . . . . . 1 . 3 2 5 8 1 1 . Guns 52 | . 5 10 . 3 17 . 12 . . . . . . 5 Cannons 5 | . . . . . . . 4 . . . . . . 1 AOE 15 | . . 2 . . . . 1 . . . 8 . 4 . Classes Destroyed 14 | 1 3 . . . 4 1 1 . . 2 1 . 1 . Worker 7 | . . . . . . . . . . 3 . . 2 2 Builder 10 | . . . . . 3 . 3 . . . 1 . 3 . Tunneler 3 | 1 . . . . . . . . 1 . . . . 1 Hauler 1 | . . . . . . . . . . 1 . . . . Recycler 1 | . . . . . . . . . . . 1 . . . Mechanic 1 | . . . . . . . . . . . . . 1 . Operator 7 | . . . . . 1 . . 3 . 2 1 . . . Watcher 5 | . 1 . . . . . 2 . . 1 . . 1 . Swarmer 42 | . 3 6 . 3 6 . 5 . . . 13 . . 6 Grunt 23 | . 3 6 . . 4 1 7 . . . . . 2 . Duelist 2 | . . . . . 1 . . . . . . . 1 . Sentry 11 | . . . . . 6 . 4 . . . . 1 . . Hunter 1 | . . . . . . . 1 . . . . . . . Programmer 16 | . . . . . . 1 . 3 2 5 3 . 2 . Best Kill Streak 9 | 1 3 5 . 3 5 1 5 1 1 3 5 1 9 3 Combat Bots Only 5 | . 3 5 . 3 5 1 3 1 1 2 5 1 5 2 Max Kills in Single Turn 4 | 1 1 2 . 1 2 1 2 1 1 1 4 1 4 2 Gunslinging 1 | . . 1 . . 1 . . . . . . . . . Exploded 4 | . . 1 . . . . 1 . . . 4 . 1 . Melee 1 | . . . . . . 1 . 1 1 1 1 1 1 . Uniques/NPCs Destroyed . | . . . . . . . . . . . . . . . Combat | -11 -10 -10 -10 -9 -8 -8 -8 -7 -6 -5 -4 -3 -2 -1 -------- Run | Yrd Mat Min Exi Min Mat Gar Mat Fac Fac Fac Fac Res Res Acc Hostile Shots Fired 898 | . 40 37 . 7 39 2 62 48 20 49 64 26 199 305 Missed 353 | . 15 8 . 1 9 1 17 23 8 16 29 17 87 122 Hits 545 | . 25 29 . 6 30 1 45 25 12 33 35 9 112 183 Melee 4 | . . . . . . . . . . . . . 4 . Projectile 541 | . 25 29 . 6 30 1 45 25 12 33 35 9 108 183 AOE 1 | . . . . . . . . . . 1 . . . . Critical Strikes 26 | . . 2 . . 1 . 2 4 . 3 2 . 8 4 Actively Blocked 2 | . . . . . . . . . . 2 . . . . Damage Taken 8662 | . 203 338 . 34 259 12 305 277 259 680 487 159 2381 3268 Core 3243 | . 34 92 . 4 27 . 51 59 119 233 113 40 866 1605 Absorbed by Shields . | . . . . . . . . . . . . . . . Ignored by Resistances 2508 | . 64 101 . 12 139 3 210 81 69 170 138 45 645 831 Regen/Repaired (Parts) 500 | . . . . . . . . 38 36 256 . . 170 . Core Remaining (%) 79 | 100 . . . 48 . . 85 91 86 76 90 96 40 . Volleys Fired 265 | 1 17 27 . 7 29 9 38 21 2 49 22 1 20 22 Largest 3 | 2 2 2 . 2 3 3 3 1 1 1 1 1 1 3 Hottest 174 | 80 80 80 . 56 79 79 128 65 65 98 49 10 98 174 Shots Fired 467 | 2 32 52 . 14 80 27 114 22 2 49 22 1 20 30 Gun 308 | 2 32 52 . 14 80 27 76 . . . . . 1 24 Cannon 98 | . . . . . . . 38 22 2 25 . . 5 6 Launcher 12 | . . . . . . . . . . . 3 . 9 . Special 49 | . . . . . . . . . . 24 19 1 5 . Kinetic 230 | . . 11 . 14 80 27 92 . . . . . . 6 Thermal 121 | . . 20 . . . . 22 22 2 25 . . 6 24 Explosive 12 | . . . . . . . . . . . 3 . 9 . Electromagnetic 55 | 2 32 21 . . . . . . . . . . . . Robot Hit Streak 58 | 1 5 12 . 4 16 31 58 1 . 14 35 36 50 54 Robot Miss Streak 3 | 1 3 3 . 3 2 . 3 2 . 1 . . . 2 Penetration Max 2 | . . . . . 1 1 2 . . . . . . . Secondary Targets 9 | . . 2 . 1 5 . . . . . . . . 1 Max Gunslinging Chain 1 | . . 1 . 1 1 . . . . . . . . 1 Shots Hit Robots 410 | 1 19 38 . 6 57 19 76 26 6 54 49 5 32 22 Core Hits 178 | 1 7 19 . 3 27 5 35 6 2 11 19 2 26 15 Critical Kills 7 | . . . . . 1 1 5 . . . . . . . Critical Parts Destroyed 7 | . . . . . . . 7 . . . . . . . Critical Strikes 29 | . . . . . 1 1 12 2 . 6 3 1 3 . Destroy 14 | . . . . . 1 1 12 . . . . . . . Sever 15 | . . . . . . . . 2 . 6 3 1 3 . Melee Attacks 278 | . . . . . 3 4 . 65 35 82 46 8 35 . Impact . | . . . . . . . . . . . . . . . Slashing 276 | . . . . . 3 4 . 63 35 82 46 8 35 . Piercing . | . . . . . . . . . . . . . . . Sneak Attacks 23 | . . . . . . 2 . 1 1 6 7 3 3 . Combat Hostiles . | . . . . . . . . . . . . . . . Follow-up Attacks . | . . . . . . . . . . . . . . . Damage Inflicted 12628 | 40 255 615 . 99 1124 446 1234 916 266 1720 2292 296 2656 669 Guns 3460 | 15 254 426 . 99 1112 312 784 . . . . . . 458 Cannons 574 | . . . . . . . 375 27 . . . . 31 141 Explosions 3046 | 25 . 189 . . . . 45 . . . 1009 . 1778 . Melee 5435 | . . . . . . 134 . 889 266 1720 1283 296 847 . Ramming 113 | . 1 . . . 12 . 30 . . . . . . 70 Kinetic 2580 | . . 42 . 99 1112 312 874 . . . . . . 141 Thermal 1178 | 25 . 352 . . . . 285 27 . . . . 31 458 Explosive 2787 | . . . . . . . . . . . 1009 . 1778 . Electromagnetic 535 | 15 254 221 . . . . 45 . . . . . . . Impact . | . . . . . . . . . . . . . . . Slashing 5435 | . . . . . . 134 . 889 266 1720 1283 296 847 . Piercing . | . . . . . . . . . . . . . . . Highest Corruption 5 | . . . . . . . . 4 2 2 3 . 5 5 Average Corruption 2 | . . . . . . . . 3 1 1 2 . 3 5 Corruption Purged 2 | . . . . . . . . . . 2 . . . . Corruption Blocked . | . . . . . . . . . . . . . . . Effects 47 | . . . . . . . . 18 8 5 4 . 5 7 Message Errors 10 | . . . . . . . . 4 1 1 1 . 1 2 Matter Fused 14 | . . . . . . . . 4 4 3 1 . . 2 Heat Flow Errors 6 | . . . . . . . . 4 . . 1 . 1 . Energy Discharges 9 | . . . . . . . . 4 2 . . . 1 2 Parts Rejected 1 | . . . . . . . . . 1 . . . . . Data Loss (minor) 4 | . . . . . . . . 1 . . 1 . 2 . Misfires 1 | . . . . . . . . 1 . . . . . . Alerts 1 | . . . . . . . . . . 1 . . . . Weapon Failures 1 | . . . . . . . . . . . . . . 1 Overload Shots . | . . . . . . . . . . . . . . . Overflow Damage 940 | . . 2 . . . . 26 192 50 281 37 . 352 . Projectiles 26 | . . . . . . . 26 . . . . . . . Explosions 203 | . . 2 . . . . . . . . 7 . 194 . Melee 711 | . . . . . . . . 192 50 281 30 . 158 . Knockbacks 6 | . . . . . . . 5 . . . . . . 1 Impact 1 | . . . . . . . 1 . . . . . . . Kinetic 5 | . . . . . . . 4 . . . . . . 1 Secondary . | . . . . . . . . . . . . . . . Self-Inflicted Damage 238 | . . 97 . . . . 5 . . . . . 95 41 Shots 7 | . . 3 . . . . 1 . . . . . 3 . Rammed 19 | . 1 . . . 1 . 5 . . . . . 1 11 Targets Rammed 19 | . 1 . . . 1 . 5 . . . . . 1 11 Kicked . | . . . . . . . . . . . . . . . Crushed . | . . . . . . . . . . . . . . . Highest Temperature 395 | 18 153 183 . . 203 54 395 270 36 168 258 . 136 72 Average Temperature 79 | 12 57 62 . . 57 16 131 68 19 52 131 . 53 31 Received Heat Transfer 849 | . 45 144 . . 144 . 153 9 9 30 18 18 207 72 Effects 3 | . . . . . . . 3 . . . . . . . Energy Bleed 2 | . . . . . . . 2 . . . . . . . Matter Decay 1 | . . . . . . . 1 . . . . . . . Siege Activations . | . . . . . . . . . . . . . . . Martial Activations . | . . . . . . . . . . . . . . . Shielding Activations . | . . . . . . . . . . . . . . . Robots Disrupted . | . . . . . . . . . . . . . . . Combat Hostiles . | . . . . . . . . . . . . . . . Robots Corrupted 1 | . 1 . . . . . . . . . . . . . Combat Hostiles 1 | . 1 . . . . . . . . . . . . . Parts Fried 1 | . 1 . . . . . . . . . . . . . Impact Corruptions . | . . . . . . . . . . . . . . . Robots Melted . | . . . . . . . . . . . . . . . Combat Hostiles . | . . . . . . . . . . . . . . . Parts Melted 7 | . . 2 . . . . . . . . . . . 5 Heat Transferred 1994 | 50 . 525 . . . . 555 37 . . . . 50 777 Parts Sabotaged . | . . . . . . . . . . . . . . . Parts Stolen . | . . . . . . . . . . . . . . . Parts Stripped . | . . . . . . . . . . . . . . . Power Chain Reactions 4 | 1 . 3 . . . . . . . . . . . . Alert | -11 -10 -10 -10 -9 -8 -8 -8 -7 -6 -5 -4 -3 -2 -1 ------- Run | Yrd Mat Min Exi Min Mat Gar Mat Fac Fac Fac Fac Res Res Acc Maximum Alert Level 2 | . . . . . . 2 2 . . . 1 . 1 . Low Security (%) 86 | 100 100 100 . 100 100 44 . 100 100 100 93 100 97 100 Level 1 9 | . . . . . . 23 98 . . . 6 . 2 . Level 2 3 | . . . . . . 32 1 . . . . . . . Level 3 . | . . . . . . . . . . . . . . . Level 4 . | . . . . . . . . . . . . . . . Level 5 . | . . . . . . . . . . . . . . . High Security . | . . . . . . . . . . . . . . . Max Security . | . . . . . . . . . . . . . . . Peak Influence 680 | 5 70 149 . 70 180 680 450 187 53 57 347 30 222 131 Initial 285 | . . . . . . 96 285 175 35 . . 14 9 83 Average 79 | . 23 64 . 4 29 309 252 63 8 9 56 5 50 64 Influence Increases 5271 | 5 168 346 . 70 411 644 555 587 209 585 770 38 587 296 Destroy 0b10 Robot/C 1788 | . 120 240 . 60 272 32 272 80 32 120 320 20 100 120 Destroy 0b10 Robot/NC 166 | 5 5 . . . 16 4 20 12 4 35 15 . 35 15 Destroy Leader 412 | . 32 50 . 10 80 . 76 32 16 24 50 10 22 10 Allied During Kill 6 | . . . . . 1 . . 3 . . . . 2 . Trap Triggered on 0b10 110 | . . . . . . . . . . 60 50 . . . Successful Hack 233 | . 11 6 . . 21 . 16 75 25 31 12 . 26 10 Select Force Hacks 138 | . . . . . . . . . 48 30 60 . . . Disable Machine 102 | . . 9 . . 16 . 32 . . 18 27 . . . Anti-Garrison Action 720 | . . . . . . 600 120 . . . . . . . Destroy Structure 585 | . . 11 . . 5 8 19 49 24 132 86 8 237 6 Partial Spotted 195 | . . . . . . . . 48 12 30 75 . 30 . Lose Combat Pursuer 816 | . . 30 . . . . . 288 48 105 75 . 135 135 Influence Decreases 5180 | 5 168 346 . 70 241 134 785 951 295 583 741 49 448 364 Entered New Map 901 | . . . . . . 74 395 275 51 . 2 17 11 76 Time Decay 3344 | 5 158 326 . 70 241 . 390 643 244 573 325 32 207 130 Lost Part 451 | . 10 20 . . . . . 13 . 10 30 . 210 158 Lost Ally 184 | . . . . . . 60 . 20 . . 84 . 20 . Purge Threat 300 | . . . . . . . . . . . 300 . . . Squads Dispatched 60 | . 1 . . . 5 . 3 13 9 12 8 2 5 2 Investigation 26 | . 1 . . . 1 . . 7 5 4 4 2 2 . Extermination 19 | . . . . . . . . 5 3 5 3 . 2 1 Reinforcement 10 | . . . . . 1 . 1 1 1 3 1 . 1 1 Assault 1 | . . . . . . . 1 . . . . . . . Garrison 4 | . . . . . 3 . 1 . . . . . . . Intercept . | . . . . . . . . . . . . . . . Searches Triggered . | . . . . . . . . . . . . . . . Construction Impeded 2 | . . . . . 1 . . . . . . . 1 . Haulers Reinforced 1 | . . . . . . . . . 1 . . . . . Active Scanning Responses . | . . . . . . . . . . . . . . . Cargo Convoy Interrupts 1 | . . . . . . . . . . . 1 . . . Stealth | -11 -10 -10 -10 -9 -8 -8 -8 -7 -6 -5 -4 -3 -2 -1 --------- Run | Yrd Mat Min Exi Min Mat Gar Mat Fac Fac Fac Fac Res Res Acc Distress Signals 12 | . . . . . 2 . 2 2 3 1 . . 1 1 Communications Jammed . | . . . . . . . . . . . . . . . Distress Signals . | . . . . . . . . . . . . . . . Times Spotted 250 | . 7 13 . 2 23 1 23 39 13 27 38 5 29 30 Peak Tracking Total 14 | . 3 3 . 2 4 1 4 13 3 4 5 5 13 14 Tactical Retreats 27 | . . 1 . . . . . 9 2 5 3 . 3 4 Traps | -11 -10 -10 -10 -9 -8 -8 -8 -7 -6 -5 -4 -3 -2 -1 ------- Run | Yrd Mat Min Exi Min Mat Gar Mat Fac Fac Fac Fac Res Res Acc Traps Triggered 13 | . 2 . . . 2 1 . . 1 5 . 1 . 1 Indirectly . | . . . . . . . . . . . . . . . Trap Hack Attempts 4 | . . . . . . . . 4 . . . . . . Triggered . | . . . . . . . . . . . . . . . Disarmed 4 | . . . . . . . . 4 . . . . . . Reprogrammed 15 | . . . . . . . . . 4 6 5 . . . Reused 11 | . . . . . . . . . . 6 5 . . . Traps Extracted . | . . . . . . . . . . . . . . . Installed . | . . . . . . . . . . . . . . . Triggered 11 | . . . . . . . . . . 6 5 . . . Machines | -11 -10 -10 -10 -9 -8 -8 -8 -7 -6 -5 -4 -3 -2 -1 ---------- Run | Yrd Mat Min Exi Min Mat Gar Mat Fac Fac Fac Fac Res Res Acc Machines Disabled 16 | . . 1 . . 2 3 5 . . 2 3 . . . Max in Single Turn 2 | . . 1 . . 1 1 2 . . 1 1 . . . Garrison Access 4 | . . . . . . . 1 1 1 1 . . . . Garrison Relay 3 | . . . . . . 3 . . . . . . . . Machines Repaired . | . . . . . . . . . . . . . . . Machines Dismantled 2 | . . . . . . . . . . 2 . . . . Machines Sabotaged . | . . . . . . . . . . . . . . . Overloaded Fab Kills . | . . . . . . . . . . . . . . . Hacking | -11 -10 -10 -10 -9 -8 -8 -8 -7 -6 -5 -4 -3 -2 -1 --------- Run | Yrd Mat Min Exi Min Mat Gar Mat Fac Fac Fac Fac Res Res Acc Machines Accessed 101 | . 1 2 3 2 7 3 5 23 14 21 15 2 2 1 Terminals 55 | . 1 2 . . 6 3 4 12 7 9 9 1 1 . Fabricators 10 | . . . . . . . . 5 3 1 1 . . . Repair Stations 9 | . . . . . . . . 3 1 3 . . 1 1 Recycling Units 10 | . . . . . . . 1 1 2 4 2 . . . Scanalyzers 5 | . . . . . . . . 1 . 2 1 1 . . Garrison Access 7 | . . . . . 1 . . 1 1 2 2 . . . Total Hacks 362 | . 3 4 13 2 17 5 10 62 48 92 86 5 14 1 Successful 275 | . 2 2 13 2 12 1 5 50 39 78 56 3 11 1 Failed 86 | . 1 2 . . 5 4 5 11 9 14 30 2 3 . Catastrophic 13 | . . 1 . . 1 1 1 3 . 1 3 . 2 . Database Lockouts 1 | . . . . . . . . 1 . . . . . . Manual 183 | . 3 2 1 . 10 2 6 38 25 32 57 1 6 . Terminals 209 | . 3 4 . . 16 5 8 38 30 33 65 1 6 . Fabricators 26 | . . . . . . . . 14 7 3 2 . . . Repair Stations 40 | . . . . . . . . 4 4 23 . . 8 1 Recycling Units 31 | . . . . . . . 2 1 5 14 9 . . . Scanalyzers 30 | . . . . . . . . 4 . 16 6 4 . . Garrison Access 11 | . . . . . 1 . . 1 2 3 4 . . . Terminal Hacks 93 | . 1 2 13 2 6 1 2 16 9 9 29 1 2 . Record 12 | . . . 12 . . . . . . . . . . . Part Schematic 10 | . . . . . . . . 4 . . 6 . . . Robot Analysis 4 | . . . . . . . . . . . 4 . . . Prototype ID Bank 4 | . . . . . 1 . . 1 1 1 . . . . Open Door 4 | . . . . 2 . 1 . . . 1 . . . . Open DSF 2 | . . . . . . . . 1 . . 1 . . . Level Access Points 4 | . . . . . . . . 1 . 1 1 . 1 . Branch Access Points 3 | . 1 . . . . . 1 . 1 . . . . . Emergency Access Points 1 | . . . . . . . . . . . 1 . . . Machine Index 6 | . . . . . . . 1 1 1 1 1 . 1 . Terminal Index 3 | . . . . . . . . 1 . . 1 1 . . Garrison Index 1 | . . . . . 1 . . . . . . . . . Unreport Threat 2 | . . . . . . . . . . . 2 . . . Locate Traps 4 | . . . . . 1 . . . 2 . 1 . . . Disarm Traps 1 | . . . . . . . . 1 . . . . . . Reprogram Traps 3 | . . . . . . . . . 1 1 1 . . . Security Status 1 | . . . . . . . . . . . 1 . . . Patrol Status 1 | . . 1 . . . . . . . . . . . . Investigation Status 3 | . . . . . . . . . . . 3 . . . Recall Investigation 6 | . . . . . . . . 1 1 1 3 . . . Recall Extermination 2 | . . . . . . . . 1 . . 1 . . . Recall Reinforcements 1 | . . . . . . . . . . . 1 . . . Registered Components 4 | . . . . . 1 . . 1 . 1 1 . . . Registered Prototypes 4 | . . . . . 1 . . 2 . 1 . . . . Zone Layout 6 | . . 1 . . 1 . . 1 2 1 . . . . Proto ID Catalog 1 | . . . 1 . . . . . . . . . . . Fabricator Hacks 19 | . . . . . . . . 9 6 2 2 . . . Network Status 1 | . . . . . . . . 1 . . . . . . Load Schematic 10 | . . . . . . . . 5 3 1 1 . . . Build 8 | . . . . . . . . 3 3 1 1 . . . Repair Station Hacks 35 | . . . . . . . . 2 4 20 . . 8 1 Scan Component 17 | . . . . . . . . 1 2 10 . . 4 . Repair 16 | . . . . . . . . 1 2 9 . . 4 . Refit 2 | . . . . . . . . . . 1 . . . 1 Recycling Unit Hacks 26 | . . . . . . . . 1 3 13 9 . . . Recycle Component 8 | . . . . . . . . . . 6 2 . . . Process 4 | . . . . . . . . . . 2 2 . . . Retrieve Matter 5 | . . . . . . . . . . 2 3 . . . Retrieve Components 9 | . . . . . . . . 1 3 3 2 . . . Scanalyzer 23 | . . . . . . . . 3 . 15 3 2 . . Insert Component 5 | . . . . . . . . . . 4 1 . . . Analyze 4 | . . . . . . . . . . 4 . . . . Retrieve Study 14 | . . . . . . . . 3 . 7 2 2 . . Garrison Access Hacks 8 | . . . . . 1 . . 1 2 2 2 . . . Unlock Access 1 | . . . . . 1 . . . . . . . . . Seal Access 3 | . . . . . . . . 1 1 1 . . . . Coupler Status 4 | . . . . . . . . . 1 1 2 . . . Unauthorized Hacks 71 | . 1 . . . 5 . 3 18 15 17 11 . 1 . Terminals 57 | . 1 . . . 5 . 3 13 12 13 9 . 1 . Botnet 33 | . 1 . . . 5 . 2 6 5 6 7 . 1 . Disrupt 1 | . . . . . . . . 1 . . . . . . Operators 5 | . . . . . . . 1 . 2 2 . . . . Skim 18 | . . . . . . . . 6 5 5 2 . . . Fabricators 4 | . . . . . . . . 3 1 . . . . . Prioritize 1 | . . . . . . . . . 1 . . . . . Liberate 1 | . . . . . . . . 1 . . . . . . Recompile 2 | . . . . . . . . 2 . . . . . . Repair Stations 4 | . . . . . . . . 2 . 2 . . . . Patch 4 | . . . . . . . . 2 . 2 . . . . Recycling Units 3 | . . . . . . . . . 2 1 . . . . Recyclers 1 | . . . . . . . . . . 1 . . . . Tunnel 2 | . . . . . . . . . 2 . . . . . Scanalyzers . | . . . . . . . . . . . . . . . Garrison Access 3 | . . . . . . . . . . 1 2 . . . Eject 3 | . . . . . . . . . . 1 2 . . . Data Cores Recovered 4 | . . . . . 1 . . 2 . 1 . . . . Used 1 | . . . . . . . . 1 . . . . . . Hacking Detections 72 | . 1 2 . . 6 2 5 17 13 15 10 . 1 . Full Trace Events 12 | . . 1 . . 2 . . 3 3 1 2 . . . Feedback Events . | . . . . . . . . . . . . . . . Feedback Blocked 1 | . . . . . . . . . . . 1 . . . Robot Schematics Acquired . | . . . . . . . . . . . . . . . Robots Built . | . . . . . . . . . . . . . . . Authchips . | . . . . . . . . . . . . . . . Time . | . . . . . . . . . . . . . . . Total Robot Build Rating . | . . . . . . . . . . . . . . . Part Schematics Acquired 14 | . . . . . . . . 4 . 4 6 . . . Parts Built 9 | . . . . . . . . 3 4 1 1 . . . Authchips 2 | . . . . . . . . 2 . . . . . . Time 369 | . . . . . . . . 125 162 47 35 . . . Total Part Build Rating 40 | . . . . . . . . 15 14 5 6 . . . Part Studies Acquired 14 | . . . . . . . . 3 . 7 2 2 . . Parts Repaired 16 | . . . . . . . . 1 2 9 . . 4 . Time 616 | . . . . . . . . 25 41 434 . . 116 . Parts Recycled 8 | . . . . . . . . . . 6 2 . . . Recycled Matter 337 | . . . . . . . . . . 195 142 . . . Retrieved Matter 337 | . . . . . . . . . . 195 142 . . . Retrieved Components 11 | . . . . . . . . 3 2 6 . . . . Parts Scanalyzed 5 | . . . . . . . . . . 4 1 . . . Part Schematics Acquired 4 | . . . . . . . . . . 4 . . . . Parts Damaged . | . . . . . . . . . . . . . . . Bothacking | -11 -10 -10 -10 -9 -8 -8 -8 -7 -6 -5 -4 -3 -2 -1 ------------ Run | Yrd Mat Min Exi Min Mat Gar Mat Fac Fac Fac Fac Res Res Acc Used RIF Installer 2 | . . . . . . 2 . . . . . . . . Structural Interface 1 | . . . . . . 1 . . . . . . . . Robots Hacked 35 | . . . . . . . . 1 . 13 16 1 4 . Non-combat 19 | . . . . . . . . 1 . 10 8 . . . Combat 16 | . . . . . . . . . . 3 8 1 4 . Robot Hacks Applied 43 | . . . . . . . . 1 . 18 19 1 4 . parse_system 5 | . . . . . . . . 1 . 2 2 . . . no_distress 1 | . . . . . . . . . . 1 . . . . generate_echo 1 | . . . . . . . . . . 1 . . . . deconstruct_machine 1 | . . . . . . . . . . . 1 . . . hold_bot 1 | . . . . . . . . . . 1 . . . . start_disposal 1 | . . . . . . . . . . 1 . . . . map_walls 1 | . . . . . . . . . . 1 . . . . find_dsf 2 | . . . . . . . . . . . 2 . . . drop_inventory 2 | . . . . . . . . . . . 2 . . . check_alert 1 | . . . . . . . . . . 1 . . . . block_reporting 2 | . . . . . . . . . . 1 1 . . . map_route 2 | . . . . . . . . . . 1 1 . . . mark_security 2 | . . . . . . . . . . 2 . . . . overload_power 2 | . . . . . . . . . . 1 1 . . . amplify_resonance 3 | . . . . . . . . . . 1 1 . 1 . reboot_system 7 | . . . . . . . . . . 2 3 1 1 . overwrite_iff 7 | . . . . . . . . . . 1 4 . 2 . streamctrl_low 1 | . . . . . . . . . . 1 . . . . formatsys_high 1 | . . . . . . . . . . . 1 . . . Relay Couplers Released 31 | . . . . . . 15 2 . . 4 10 . . . Ejected 11 | . . . . . . . . . . 4 7 . . . Machine Destruction 14 | . . . . . . 12 2 . . . . . . . Programmers 6 | . . . . . . 3 . . . . 3 . . . Attached 8 | . . . . . . . . . . 2 5 . 1 . Fabnet Peak Effective % . | . . . . . . . . . . . . . . . Robots Rewired 3 | . . . . . . 3 . . . . . . . . Allies Hacked 1 | . . . . . . . . . . . 1 . . . Hacks Repelled . | . . . . . . . . . . . . . . . Allies | -11 -10 -10 -10 -9 -8 -8 -8 -7 -6 -5 -4 -3 -2 -1 -------- Run | Yrd Mat Min Exi Min Mat Gar Mat Fac Fac Fac Fac Res Res Acc Total Allies 17 | . . 2 . . . 3 . 3 . 2 5 . 2 . Largest Group 3 | . . 2 2 . . 3 . 3 2 1 1 . 2 . Highest-Rated Group 116 | . . 40 40 . . 66 . 48 32 29 58 . 116 . Highest-Rated Ally 58 | . . 31 31 . . 31 . 16 16 29 58 . 58 . Total Orders . | . . . . . . . . . . . . . . . Ally Attacks 49 | . . . . 1 9 8 . 13 6 3 4 . 5 . Total Damage 689 | . . . . 7 25 121 . 150 49 39 128 . 170 . Kills 3 | . . . . . . . . 2 . 1 . . . . Allies Corrupted 2 | . . . . . . 1 . . . . 1 . . . Allies Melted . | . . . . . . . . . . . . . . . Intel | -11 -10 -10 -10 -9 -8 -8 -8 -7 -6 -5 -4 -3 -2 -1 ------- Run | Yrd Mat Min Exi Min Mat Gar Mat Fac Fac Fac Fac Res Res Acc Active Infowar (turns) 8770 | . 327 691 384 431 . . 460 1644 1079 2155 834 149 582 34 Optics 8233 | . 327 691 384 431 . . . 1568 1078 2155 834 149 582 34 Structural 6675 | . . . . . . . 460 1638 1079 2075 771 149 503 . Traps 4 | . . . . . . . . 4 . . . . . . ECM 1 | . . . . . . . . . 1 . . . . . Robot Analysis Total 4 | . . . . . . . . . . . 4 . . . Derelict Logs Recovered 1 | . . . . 1 . . . . . . . . . . Drone Launches 3 | . . . . 3 . . . . . . . . . . Drone Recoveries 3 | . . . . . 3 . . . . . . . . . Exploration | -11 -10 -10 -10 -9 -8 -8 -8 -7 -6 -5 -4 -3 -2 -1 ------------- Run | Yrd Mat Min Exi Min Mat Gar Mat Fac Fac Fac Fac Res Res Acc Turns Passed 12613 | 97 418 691 384 1029 1013 1465 790 1644 1079 2155 834 149 582 283 Spaces Moved 12841 | 51 224 369 239 606 543 861 394 2413 1383 3010 1469 326 520 433 Core 18 | 14 . . . . . . . . . . . . . 4 Treads 3273 | 37 224 369 239 606 543 861 394 . . . . . . . Legs . | . . . . . . . . . . . . . . . Wheels . | . . . . . . . . . . . . . . . Hover . | . . . . . . . . . . . . . . . Flight 9550 | . . . . . . . . 2413 1383 3010 1469 326 520 429 Fastest Speed 26 | 50 160 160 160 160 155 158 158 27 27 26 28 32 32 34 Average Speed 62 | 150 160 160 160 160 158 158 158 27 27 29 32 34 34 40 Slowest Speed 160 | 160 160 160 160 160 160 158 158 27 100 101 106 35 117 54 Overloaded Moves . | . . . . . . . . . . . . . . . Propulsion Burnouts . | . . . . . . . . . . . . . . . Robots Hopped 40 | . . . . . . . . 10 5 9 3 . 1 12 Potential Cave-ins 1 | . . . . . . . . . . 1 . . . . Cave-ins Triggered 1 | . . . . . . . . . . 1 . . . . Exploration Rate (%) 45 | 3 40 69 64 87 48 89 39 61 42 45 53 11 13 14 Regions Visited 14 Branch Regions 3 Pre-discovered Areas 8 | . . . 1 1 . . . 2 3 1 . . . . Known Exits Taken 8 | . 1 . . . 1 . . 1 1 1 1 1 1 . Unknown Exits Taken 5 | 1 . 1 1 1 . . 1 . . . . . . . Scrap Searched 3 | . . 1 . 2 . . . . . . . . . . Spaces Dug 169 | . . . . . 3 . . 48 24 58 14 4 18 . Terrain Destroyed 330 | 3 . 11 . . 3 1 16 50 24 69 42 4 105 2 Melee 142 | . . . . . 3 . . 38 23 44 14 4 16 . Projectile 60 | . . . . . . 1 16 12 1 25 . . 3 2 AOE 128 | 3 . 11 . . . . . . . . 28 . 86 . Terrain Rammed 1 | . . . . . . . . . . . . . . 1 Walls Destroyed . | . . . . . . . . . . . . . . . Machines Disabled . | . . . . . . . . . . . . . . . Actions | -11 -10 -10 -10 -9 -8 -8 -8 -7 -6 -5 -4 -3 -2 -1 --------- Run | Yrd Mat Min Exi Min Mat Gar Mat Fac Fac Fac Fac Res Res Acc Total 16538 | 66 252 420 241 654 629 940 474 3278 2018 4111 1756 351 848 500 Wait 2638 | 4 . 14 1 23 13 11 18 732 551 855 152 8 241 15 Move 12754 | 50 223 368 238 605 543 860 393 2394 1372 2993 1462 325 518 410 Hop 34 | . . . . . . . . 8 5 6 3 . 1 11 Pick Up 104 | 5 6 2 1 4 9 4 3 12 7 22 17 1 6 5 Fast Attach 112 | 6 2 3 . 4 7 3 3 9 12 29 12 4 8 10 Attach 62 | . . 1 . . 1 . . 10 2 26 5 1 9 7 Detach 25 | . . . . . . . . 1 . 17 2 . 4 1 Swap 41 | . . 1 . 2 6 2 6 4 2 5 8 . 5 . Drop 133 | . 3 4 1 9 17 8 8 18 15 14 25 3 1 7 Fire 265 | 1 17 27 . 7 29 9 38 21 2 49 22 1 20 22 Melee 278 | . . . . . 3 4 . 65 35 82 46 8 35 . Ram 12 | . . . . . . . . . . . . . . 12 Kick . | . . . . . . . . . . . . . . . Crush 7 | . 1 . . . 1 . 5 . . . . . . . Escape Stasis 16 | . . . . . . . . . 15 1 . . . . Rewire 41 | . . . . . . 39 . . . . 2 . . . Trap 4 | . . . . . . . . 4 . . . . . . Miscellaneous 12 | . . . . . . . . . . 12 . . . . Route ------- -11/Scrapyard -10/Materials (discovered 2 exits: [*Mat] / *Min) -10/Mines (discovered 3 exits: [*Mat x2] / *Exi) -10/Exiles -9/Mines -8/Materials (discovered 2 exits: *Fac / Gar) -8/Garrison (discovered 2 exits: *Mat x2) -8/Materials (discovered 2 exits: *Fac x2) -7/Factory (discovered 4 exits: *Fac x4) -6/Factory (discovered 6 exits: *Fac x4 / Low x2) -5/Factory (discovered 8 exits: *Fac x4 / [*Upp x2] / *Ext x2) -4/Factory (discovered 6 exits: *Res x4 / *Upp x2) -3/Research (discovered 3 exits: *Res / Arm / *Tes) -2/Research (discovered 3 exits: *Acc x3) -1/Access History --------- Turn | Location | Event 21 | -11/Scrapyard | Discovered new exit (range 15) 98 | -11/Scrapyard | Entered Materials 305 | -10/Materials | Build established: Mutant 318 | -10/Materials | Discovered new exit (range 17) 340 | -10/Materials | Identified exit to Mines 516 | -10/Materials | Entered Mines 576 | -10/Mines | Discovered new exit (range 18) 866 | -10/Mines | Discovered new exit (range 2) 982 | -10/Mines | Core integrity fell below 50% 1193 | -10/Mines | Deemed a non-threat by the Exiles lab entrance 1193 | -10/Mines | Discovered new exit (range 5) 1207 | -10/Mines | Entered Exiles 1207 | -10/Exiles | Accompanied by 2 allies 1237 | -10/Exiles | Led the pair of lost Derelicts to a safe place 1247 | -10/Exiles | Met 8R-AWN 1276 | -10/Exiles | Met EX-HEX 1322 | -10/Exiles | Met EX-BIN 1352 | -10/Exiles | Aligned with FarCom system 1354 | -10/Exiles | Given EX-Vault access code 1394 | -10/Exiles | Opened EX-Vault 1406 | -10/Exiles | Found 0b10 Alert Chip 1440 | -10/Exiles | Warned to stay clear of 0b10 Research branches 1482 | -10/Exiles | Met EX-DEC 1519 | -10/Exiles | Learned location of Zion (-7) 1560 | -10/Exiles | Discovered new exit (range 17) 1591 | -10/Exiles | Left Exiles lab with 0b10 Alert Chip 1591 | -10/Exiles | Entered Mines 1644 | -9/Mines | Met a Derelict who couldn't figure out how to use a Trap Extractor 1644 | -9/Mines | Learned Materials terminal intel 2015 | -9/Mines | Found the Drone Emporium 2023 | -9/Mines | Found Prototype Device 2023 | -9/Mines | Identified Thief Drone Bay 2094 | -9/Mines | Learned location of Storage (-9) 2273 | -9/Mines | Joined a pair of Derelicts in attacking an 0b10 outpost 2605 | -9/Mines | Discovered new exit (range 10) 2620 | -9/Mines | Entered Materials 2620 | -8/Materials | Accompanied by 3 allies 2620 | -8/Materials | Evolved 4 slots: Propulsion x1, Utility x2, Weapon x1 2621 | -8/Materials | Loaded intel: 12 terminal locations 3253 | -8/Materials | Build established: Skirmisher 3558 | -8/Materials | Discovered new exit (range 13) 3633 | -8/Materials | Identified exit to Garrison 3633 | -8/Materials | Entered Garrison 3633 | -8/Garrison | Discovered recently destroyed garrison 3912 | -8/Garrison | Discovered new exit (range 12) 4203 | -8/Garrison | Installed Relay Interface Framework 4326 | -8/Garrison | Lost 3 allies 4372 | -8/Garrison | Garrison Relay disabled 4493 | -8/Garrison | Discovered new exit (range 11) 4553 | -8/Garrison | Garrison Relay disabled 4628 | -8/Garrison | Garrison Relay disabled 5024 | -8/Garrison | Expanded RIF knowledge: Structural Interface 5098 | -8/Garrison | Entered Materials 5631 | -8/Materials | Discovered new exit (range 16) 5853 | -8/Materials | Garrison activated, responded to threat 5856 | -8/Materials | Discovered new exit (range 7) 5888 | -8/Materials | Entered Factory 5888 | -7/Factory | Evolved 2 slots: Propulsion x1, Utility x1 5905 | -7/Factory | Identified exit to DSF 6063 | -7/Factory | Repaired Imp. Trap Scanner 6163 | -7/Factory | Discovered new exit (range 18) 6174 | -7/Factory | Build established: Hacker-Scout 6553 | -7/Factory | Fabricated Imp. Hacking Suite? 6638 | -7/Factory | Identified exit to Factory 6638 | -7/Factory | Central database locked down 6720 | -7/Factory | Loaded intel: 101 trap records 6855 | -7/Factory | Learned location of Archives (-5) 6910 | -7/Factory | Learned 4 Lower Caves zone layouts 6954 | -7/Factory | Learned location of 2 exits from Upper Caves 6989 | -7/Factory | Learned location of 1 exit from Lower Caves 7036 | -7/Factory | Learned location of 2 exits from Proximity Caves 7093 | -7/Factory | Learned 2 Lower Caves zone layouts 7251 | -7/Factory | Build established: Scout 7342 | -7/Factory | Fabricated Imp. Hacking Suite? 7463 | -7/Factory | Fabricated Imp. Hacking Suite? 7532 | -7/Factory | Entered another Factory area 7532 | -6/Factory | Accompanied by 2 allies 7532 | -6/Factory | Evolved 2 slots: Utility x2 7582 | -6/Factory | Identified exit to Lower Caves 7648 | -6/Factory | Repaired VTOL Module+ 7674 | -6/Factory | Repaired Nuclear Pulse Thruster+ 7772 | -6/Factory | Fabricated Remote Datajack (x2) 7893 | -6/Factory | Spotted B-75 Beast 7971 | -6/Factory | Build established: Hacker-Scout 7990 | -6/Factory | Fabricated Imp. Hacking Suite? 8278 | -6/Factory | Fabricated Sml. Storage Unit (x1) 8379 | -6/Factory | Identified exit to Factory 8427 | -6/Factory | Learned 2 Extension zone layouts 8464 | -6/Factory | Learned location of 2 exits from Lower Caves 8510 | -6/Factory | Learned Extension stockpile data 8515 | -6/Factory | Learned Extension security intel 8532 | -6/Factory | Learned 4 Proximity Caves zone layouts 8560 | -6/Factory | Learned location of Warlord (-5) 8596 | -6/Factory | Learned Hub_04(d) trap positions 8611 | -6/Factory | Entered another Factory area 8611 | -5/Factory | Evolved 2 slots: Utility x2 8730 | -5/Factory | Watched by a mysterious "MATRIX" hacker 8801 | -5/Factory | Repaired Imp. Cesium-ion Thruster 8827 | -5/Factory | Repaired Nuclear Pulse Thruster+ 8864 | -5/Factory | Repaired Imp. Cesium-ion Thruster 8878 | -5/Factory | Repaired Structural Scanner 9042 | -5/Factory | Identified exit to Factory 9049 | -5/Factory | Lost 3 parts (1p1n1u) 9174 | -5/Factory | Discovered new exit (range 13) 9218 | -5/Factory | Discovered new exit (range 9) 9461 | -5/Factory | Discovered new exit (range 6) 9508 | -5/Factory | Repaired Biomechanical Wings 9580 | -5/Factory | Repaired Imp. Cesium-ion Thruster 9638 | -5/Factory | Repaired Imp. Remote Datajack+ 9754 | -5/Factory | Repaired Power Sword+ 9826 | -5/Factory | Repaired Imp. Cesium-ion Thruster 10228 | -5/Factory | Crushed by falling debris 10393 | -5/Factory | Learned 2 Extension zone layouts 10466 | -5/Factory | Loaded intel: 4 scanalyzer locations 10529 | -5/Factory | Identified exit to Extension 10529 | -5/Factory | Fabricated Imp. Hacking Suite? 10623 | -5/Factory | Learned 4 Upper Caves zone layouts 10655 | -5/Factory | Learned location of 2 exits from Research 10713 | -5/Factory | Learned Extension emergency access door positions 10766 | -5/Factory | Entered another Factory area 10766 | -4/Factory | Evolved 2 slots: Propulsion x1, Utility x1 10767 | -4/Factory | Identified exit to Upper Caves 10885 | -4/Factory | Identified exit to DSF 10915 | -4/Factory | Discovered exit to Upper Caves (range 10) 11019 | -4/Factory | Identified exit to Research 11065 | -4/Factory | Build established: Wizard-Scout 11155 | -4/Factory | Spotted B-86 Titan 11367 | -4/Factory | Lost 3 allies 11408 | -4/Factory | Fabricated Adv. Hacking Suite (x1) 11505 | -4/Factory | Cargo convoy interrupted 11521 | -4/Factory | Targeted by mysterious "MATRIX" hacker 11600 | -4/Factory | Entered Research 11600 | -3/Research | Evolved 2 slots: Utility x2 11601 | -3/Research | Identified exit to Armory 11602 | -3/Research | Identified exit to Research 11602 | -3/Research | Identified exit to Testing 11749 | -3/Research | Entered another Research area 11749 | -2/Research | Evolved 2 slots: Utility x2 11837 | -2/Research | Repaired Lgt. Quantum Reactor+ 11870 | -2/Research | Repaired Adv. Reaction Control System 11906 | -2/Research | Repaired Cld. VTOL Module 11920 | -2/Research | Repaired Sml. Storage Unit 11950 | -2/Research | Identified exit to Access 12290 | -2/Research | Spotted B-90 Cyclops 12327 | -2/Research | Core integrity fell below 50% 12331 | -2/Research | Entered Access 12331 | -1/Access | Evolved 2 slots: Utility x2 12360 | -1/Access | Lost 21 parts (3p3n9u6w) 12447 | -1/Access | Found Prototype Protection 12447 | -1/Access | Identified Centrium Heavy Armor Plating 12511 | -1/Access | Spotted B-99 Colossus 12556 | -1/Access | Core integrity fell below 50% 12560 | -1/Access | Lost 13 parts (2p5n3u3w) 12584 | -1/Access | Spotted B-99 Colossus 12606 | -1/Access | Spotted B-99 Colossus 12610 | -1/Access | Core integrity fell below 20% 12614 | -1/Access | Destroyed by G-73 Enforcer with Phase Gun Last Messages --------------- 12605_ Enh. Optical Array destroyed. 12606_ Penetrated by Slug. 12606_ Slug penetrates Wall. 12606_ Penetrated by Slug. 12608_ Slug penetrates Wall. 12608_ Slug penetrates S-43 Plague. 12609_ Slug penetrates Wall. 12609_ Penetrated by Slug. 12609_ Adv. System Shield destroyed. 12609_ Penetrated by Slug. 12609_ Slug penetrates Wall. 12611_ Impulse Thruster+ destroyed. 12611_ Dropped Enh. Hardcell Cannon. 12612_ Penetrated by Slug. 12613_ Knocked back. 12613_ Penetrated by Slug. 12613_ Slug penetrates Wall. 12613_ Penetrated by Slug. 12613_ Slug penetrates Wall. 12613_ R-10 Processor collects Hvy. Machine Gun. Map ----- +----------------------------------------------------+ | ?????????????????????????????????????????????????? | | ?????????????????????????????????????????????????? | | ?????????????????????????????????????????????????? | | ?????????????????????????????????????????????????? | | ?????????????????????????????????????????????????? | | ?????????????????????????????????????????????????? | | ?????????????????????????????????????????????????? | | ?????????????????????????????????????????????????? | | ?????????????????????????????????????????????????? | | ?????????????????????????????????????????????????? | | ?????????????????????????????????????????????????? | | ?????????????????????????????????????????????????? | | ?????????????????????????????????????????????????? | | ?????????????????????????????????????????????????? | | ?????????????????????????????????????????????????? | | ?????????????????????????????????????????????????? | | ????????????????????#""""""""""#?????????????????? | | ????????????????????# % #?????????????????? | | ????????????????????# BB BB #?????????????????? | | ????????????????????# BB BB #?????????????????? | | ????????????????????# #?????????????????? | | ????????????????????# #?????????????????? | | ????????????????????# #?????????????????? | | ????????????????????# ???????????????????? | | ?????????????????????#;; #????Y???????????????? | | ?????????????????????# ; @% #????????????????????? | | #######################; %#????????????????????? | | #????????????????????? | | ] #????????????????????? | | g % #????????????????????? | | RR gggs #??s?????????????????? | | ############ ####;##/#;;;####????????????????????? | | #????# #??# % #?????sss???????????????? | | #????# #??# R % #???????????????????????? | | " ###### #??# #??????s????????????????? | | """ / #??# %s #???????????????????????? | | """ ###### #??# s #???????????????????????? | | " #????# #??# #???????????????????????? | | #????# #??# #???????????????????????? | | = #????# #??# #???????????????????????? | | #????# #??# #???????????????????????? | | #######????# #??##########???????????????????????? | | ???????????# #???????????????????????????????????? | | ############ #######?????????????????????????????? | | ??????????????????????? | | ################?????????????????????????????? | | #%= #?????????????????????????????????????? | | /==*=! #?????????????????????????????????????? | | ### #%=== #?????????????????????????????????????? | | ??# #= =! #?????????????????????????????????????? | +----------------------------------------------------+ Best States ------------- Heat Dissipation 52 Energy Generation 26 Energy Capacity 350 Matter Stores 300 Matter Capacity 300 Sight Range 22 Terrain Scan Density 10 Additional Mass Support 9 Armor Coverage 225 Resistance: KI 50 Resistance: TH 20 Resistance: EX 20 Resistance: EM 20 Resistance: I 20 Resistance: S 20 Resistance: P 20 Core Shielding 20 Evasion (%) 75 Core Analysis 6 Recoil Reduction 3 Offensive Hacking 58 Defensive Hacking 40 Relay Coupler Types 3 Relay Coupler Value 50 Authchip Count 1 Item Schematics ----------------- Remote Datajack | -7/Factory | Hacked Imp. Hacking Suite | -7/Factory | Hacked Imp. VTOL Module | -7/Factory | Hacked Sml. Storage Unit | -7/Factory | Hacked Cld. VTOL Module | -5/Factory | Scanalyzed Adv. Plasma Cannon | -5/Factory | Scanalyzed Mic. Fission Core | -5/Factory | Scanalyzed Xenon Bombardment Thruster | -5/Factory | Scanalyzed Adv. Hacking Suite | -4/Factory | Hacked Adv. System Shield | -4/Factory | Hacked Exp. Cesium-ion Thruster | -4/Factory | Hacked Field Propulsion Array | -4/Factory | Hacked Imp. Phase Shifter | -4/Factory | Hacked Tri-rail Accelerator | -4/Factory | Hacked Robot Schematics ------------------ None Fabricated ------------ Imp. Hacking Suite | x1 | -7/Factory | Authchip Imp. Hacking Suite | x1 | -7/Factory | Authchip Imp. Hacking Suite | x1 | -7/Factory Remote Datajack | x2 | -6/Factory Imp. Hacking Suite | x1 | -6/Factory Sml. Storage Unit | x1 | -6/Factory Imp. Hacking Suite | x1 | -5/Factory Adv. Hacking Suite | x1 | -4/Factory Repaired ---------- Imp. Trap Scanner | 36% | -7/Factory VTOL Module | 16% | -6/Factory Nuclear Pulse Thruster | 50% | -6/Factory Imp. Cesium-ion Thruster | 45% | -5/Factory Nuclear Pulse Thruster | 63% | -5/Factory Imp. Cesium-ion Thruster | 80% | -5/Factory Structural Scanner | 80% | -5/Factory Biomechanical Wings | 20% | -5/Factory Imp. Cesium-ion Thruster | 35% | -5/Factory Imp. Remote Datajack | 50% | -5/Factory Power Sword | 66% | -5/Factory Imp. Cesium-ion Thruster | 60% | -5/Factory Lgt. Quantum Reactor | 25% | -2/Research Adv. Reaction Control System | 32% | -2/Research Cld. VTOL Module | 60% | -2/Research Sml. Storage Unit | 65% | -2/Research Studied --------- Nuclear Pulse Thruster | -7/Factory | Hacked Lgt. Nuclear Core | -7/Factory | Hacked VTOL Module | -7/Factory | Hacked Power Sword | -5/Factory | Hacked Lgt. Angular Momentum Engine | -5/Factory | Hacked Mic. Fission Core | -5/Factory | Hacked Adv. Plasma Cannon | -5/Factory | Hacked Remote Datajack | -5/Factory | Hacked Imp. Remote Datajack | -5/Factory | Hacked Xenon Bombardment Thruster | -5/Factory | Hacked Field Propulsion Array | -4/Factory | Hacked Impulse Thruster | -4/Factory | Hacked Micro-nuke Launcher | -3/Research | Hacked Lgt. Quantum Reactor | -3/Research | Hacked Alien Tech Used ----------------- None Achievements -------------- Hack Snack Challenges ------------ None Game ------ Seed LightpackAutogunMegatreads Manual? 0 Play Time 04:22:57 Cumulative 80.2 hours Start 2026.08.01 @ 12:28:49 End 2026.08.04 @ 14:53:08 Sessions 20 Manual Loads 0 Difficulty Adventurer Special Mode None Game No. 24 Rogue 0 Adventurer 24 Explorer 0 Win Type - Total 4 Types 3/0/0/0/0/0/0/1/0/0 Lore% 37 Gallery% 45 Achievement% 47 Wizard Run 0 Options --------- Layout 1 ASCII 0 Keyboard 0 Movement Mouse Keybinds 0 Fullscreen 1 Font 24/Smallcaps Map View 50x35 Zoom Use 0% Tactical HUD 1 Map Filters NONE Filters NONE Steam 1 RUN: c9a08a31-24b7-4c15-966b-533750e2b526